[Event "LEM Sachsen-Anhalt Masters 2024"]
[Site "Merseburg"]
[Date "2024.02.08"]
[Round "1.6"]
[White "Herter, Arne"]
[Black "Wenzel, Thomas"]
[Result "1/2-1/2"]
[ECO "C70"]
[WhiteElo "2028"]
[BlackElo "1747"]
[Annotator "RC"]
[PlyCount "162"]
[EventDate "2024.02.01"]
[EventType "swiss"]
[EventCountry "GER"]
[SourceTitle "playchess.com"]
[Source "ChessBase"]
[SourceQuality "1"]
[TimeControl "40/5400+30:1800+30"]

1. e4 {[%emt 0:00:03]} e5 {[%emt 0:00:09]} 2. Nf3 {[%emt 0:00:07]} Nc6 {[%emt 0:00:13]} 3. Bb5 {[%emt 0:00:11]} a6 {[%emt 0:00:49]} 4. Ba4 {[%emt 0:00:12]} f5 {[%emt 0:01:02]} 5. Nc3 {[%emt 0:06:45]} Nf6 {[%emt 0:05:31]} 6. exf5 {[%emt 0:05:38]} d6 {[%emt 0:10:52]} 7. d4 {[%emt 0:05:06]} b5 {[%emt 0:05:49]} 8. dxe5 {[%emt 0:08:16]} dxe5 {[%emt 0:07:05]} 9. Qxd8+ {[%emt 0:02:58]} Kxd8 {[%emt 0:00:05]} 10. Bb3 {[%emt 0:01:08]} Bxf5 {[%emt 0:00:11]} 11. Bg5 {[%emt 0:01:36]} h6 {[%emt 0:06:08]} 12. Bd5 {[%emt 0:05:07]} Kd7 {[%emt 0:10:25]} 13. Nxe5+ {[%emt 0:27:23]} Nxe5 {[%emt 0:01:25]} 14. Bxf6 {[%emt 0:00:14]} Re8 {[%emt 0:11:59]} 15. O-O-O {[%emt 0:13:05]} gxf6 {[%emt 0:03:39]} 16. f4 {[%emt 0:06:26]} Ng6 {[%emt 0:06:51]} 17. Be4+ {[%emt 0:05:29]} Ke6 {[%emt 0:00:18]} 18. Bd5+ {[%emt 0:00:05]} Kd7 {[%emt 0:00:07]} 19. g4 {[%emt 0:02:56]} Bd6 {[%emt 0:02:12]} 20. gxf5 {[%emt 0:00:52]} Nxf4 {[%emt 0:00:09]} 21. Rhg1 {[%emt 0:02:56]} Rh7 {[%emt 0:03:25]} 22. Rg4 {[%emt 0:03:03]} Ne2+ {[%emt 0:01:21]} 23. Nxe2 {[%emt 0:00:59]} Rxe2 {[%emt 0:00:06]} 24. Bb7 {[%emt 0:01:01]} Rxh2 {[%emt 0:01:43]} 25. Bxa6 {[%emt 0:00:06]} Kc6 {[%emt 0:01:41]} 26. Bc8 {[%emt 0:00:52]} h5 {[%emt 0:00:31]} 27. Rg6 {[%emt 0:00:22]} h4 {[%emt 0:04:19]} 28. Rxf6 {[%emt 0:00:49]} h3 {[%emt 0:00:06]} 29. Be6 {[%emt 0:00:19]} Kc5 {[%emt 0:02:24]} 30. Rg6 {[%emt 0:00:39]} Bf4+ {[%emt 0:02:23]} 31. Kb1 {[%emt 0:00:01]} Rd2 {[%emt 0:00:31]} 32. Rh1 {[%emt 0:00:54]} Rg2 {[%emt 0:00:29]} 33. a3 {[%emt 0:00:43]} Rf2 {[%emt 0:02:49]} 34. f6 {[%emt 0:00:37]} Bd6 {[%emt 0:01:00]} 35. Rxh3 {[%emt 0:00:24]} Rxh3 {[%emt 0:00:50]} 36. Bxh3 {[%emt 0:00:02]} Be5 {[%emt 0:00:15]} 37. Rg5 {[%emt 0:00:50]} Kd6 {[%emt 0:00:12]} 38. Bg4 {[%emt 0:00:45]} Rxf6 {[%emt 0:00:12]} 39. Be2 {[%emt 0:00:21]} c6 {[%emt 0:00:10]} 40. Bd3 {[%emt 0:00:35]} Bf4 {[%emt 0:02:04]} 41. Rg7 {[%emt 0:07:43]} Be5 {[%emt 0:00:51]} 42. Rb7 {[%emt 0:01:11]} Rh6 {[%emt 0:01:55]} 43. Ka2 {[%emt 0:03:44]} Rh2 {[%emt 0:03:07]} 44. Bf5 {[%emt 0:06:58]} Rf2 {[%emt 0:01:40]} 45. Rd7+ {[%emt 0:01:53]} Kc5 {[%emt 0:00:12]} 46. Be4 {[%emt 0:02:05]} Rf4 {[%emt 0:01:01]} 47. Bd3 {[%emt 0:02:12]} Rf6 {[%emt 0:02:01]} 48. Rb7 {[%emt 0:00:41]} Rf4 {[%emt 0:03:10]} 49. b4+ {[%emt 0:03:19]} Kd6 {[%emt 0:00:56]} 50. Bxb5 {[%emt 0:01:03]} cxb5 {[%emt 0:00:27]} 51. Rb6+ {[%emt 0:00:48]} Kd7 {[%emt 0:03:03]} 52. Rxb5 {[%emt 0:00:08]} Bd6 {[%emt 0:00:51]} 53. Rd5 {[%emt 0:02:21]} Kc6 {[%emt 0:01:33]} 54. Rd3 {[%emt 0:00:19]} Bxb4 {[%emt 0:02:05]} 55. axb4 {[%emt 0:00:07]} Rxb4 {[%emt 0:00:04]} 56. Rc3+ {[%emt 0:00:32]} Kd6 {[%emt 0:02:18]} 57. Rb3 {[%emt 0:01:27]} Rh4 {[%emt 0:01:03]} 58. Kb2 {[%emt 0:01:05]} Kc5 {[%emt 0:00:15]} 59. Ka3 {[%emt 0:01:18]} Rh1 {[%emt 0:00:14]} 60. Rb8 {[%emt 0:00:36]} Ra1+ {[%emt 0:00:59]} 61. Kb2 {[%emt 0:00:06]} Rh1 {[%emt 0:00:18]} 62. Rg8 {[%emt 0:00:34]} Rh2 {[%emt 0:00:31]} 63. Kb3 {[%emt 0:00:15]} Rh3+ {[%emt 0:00:25]} 64. c3 {[%emt 0:00:06]} Rh5 {[%emt 0:00:25]} 65. Rc8+ {[%emt 0:01:11]} Kb5 {[%emt 0:01:17]} 66. Rb8+ {[%emt 0:00:55]} Kc5 {[%emt 0:00:10]} 67. Ra8 {[%emt 0:00:22]} Rh3 {[%emt 0:00:33]} 68. Ra5+ {[%emt 0:00:08]} Kb6 {[%emt 0:00:20]} 69. Rg5 {[%emt 0:00:08]} Kc6 {[%emt 0:00:51]} 70. Kb4 {[%emt 0:00:14]} Rh4+ {[%emt 0:03:31]} 71. c4 {[%emt 0:00:10]} Rh1 {[%emt 0:00:42]} 72. Rg6+ {[%emt 0:00:06]} Kc7 {[%emt 0:00:11]} 73. Kb5 {[%emt 0:00:17]} Rh7 {[%emt 0:02:48]} 74. c5 {[%emt 0:01:46]} Kb7 {[%emt 0:01:39]} 75. Rb6+ {[%emt 0:01:24]} Kc8 {[%emt 0:04:20]} 76. Ra6 {[%emt 0:00:48]} Rb7+ {[%emt 0:00:16]} 77. Kc4 {[%emt 0:00:10]} Rh7 {[%emt 0:01:43]} 78. Ra1 {[%emt 0:00:40]} Kb7 {[%emt 0:01:12]} 79. Kb5 {[%emt 0:00:37]} Rh2 {[%emt 0:00:26]} 80. Rg1 {[%emt 0:00:37]} Rb2+ {[%emt 0:00:11]} 81. Kc4 {[%emt 0:00:19]} Rc2+ {[%emt 0:00:14]} 1/2-1/2

[Event "LEM Sachsen-Anhalt Masters 2024"]
[Site "Merseburg"]
[Date "2024.02.08"]
[Round "1.7"]
[White "Haubold, Sebastian"]
[Black "Schellmann, Frank"]
[Result "1/2-1/2"]
[ECO "C90"]
[WhiteElo "2055"]
[BlackElo "1923"]
[Annotator "NA RC"]
[PlyCount "153"]
[EventDate "2024.02.01"]
[EventType "swiss"]
[EventCountry "GER"]
[SourceTitle "playchess.com"]
[Source "ChessBase"]
[SourceQuality "1"]
[TimeControl "40/5400+30:1800+30"]

1. e4 {[%emt 1:31:00]} e5 {[%emt 1:31:00]} 2. Nf3 {[%emt 0:00:30]} Nc6 {[%emt 0:00:30]} 3. Bb5 {[%emt 0:00:30]} a6 {[%emt 0:00:30]} 4. Ba4 {[%emt 0:00:30]} Nf6 5. O-O {[%emt 0:00:30]} Be7 {[%emt 0:01:00]} 6. Re1 {[%emt 0:00:30]} b5 {[%emt 0:00:30]} 7. Bb3 {[%emt 0:00:30]} d6 {[%emt 0:00:30]} 8. a4 {[%emt 0:00:30]} Bg4 {[%emt 0:00:30]} 9. c3 {[%emt 0:00:30]} O-O {[%emt 0:00:30]} 10. d3 {[%emt 0:00:30]} Na5 {[%emt 0:00:30]} 11. Bc2 {[%emt 0:00:30]} c5 {[%emt 0:00:30] C90: Closed Ruy Lopez with 7...d6: Early deviations.} 12. h3 {[%emt 0:00:30]} Bd7 {[%emt 0:00:30]} 13. Nbd2 {[%emt 0:00:30]} Qc7 {[%emt 0:00:30]} 14. Nf1 $1 {[%emt 0:00:30]} h6 {[%emt 0:00:30]} 15. Ne3 {[%emt 0:00:30]} Rfe8 {[%emt 0:00:30]} 16. Nh4 {[%emt 0:00:30]} Be6 {[%emt 0:00:30]} (16... Bf8 $11) 17. Nef5 {[%emt 0:00:30]} d5 {[%emt 0:00:30]} (17... Bf8 $11 {remains equal.}) 18. Qf3 {[%emt 0:00:30]} dxe4 {[%emt 0:00:30]} (18... Kh8 $1 $14) 19. dxe4 {[%emt 0:00:30]} (19. Qg3 $16 {[%csl Gf5][%cal Rg3g7]} Bf8 20. Bxh6 (20. Nxh6+ Kh8 $15) 20... Bxf5 21. Nxf5) 19... Kh7 {[%emt 0:00:30]} 20. Nxe7 {[%emt 0:00:30]} Qxe7 {[%emt 0:00:30]} 21. Nf5 {[%emt 0:00:30]} Bxf5 $1 {[%emt 0:00:30]} 22. exf5 {[%emt 0:00:30]} e4 {[%emt 0:00:30]} 23. Qf4 {[%emt 0:00:30]} Nc4 {[%emt 0:00:30]} 24. f3 {[%emt 0:00:30]} (24. axb5 $16 axb5 25. Rxa8 Rxa8 26. Rxe4 (26. Bxe4 Ra1 $17)) 24... e3 {[%emt 0:00:30]} (24... b4 $1 $11 {remains equal.}) 25. b3 {[%emt 0:00:30]} Qe5 {[%emt 0:00:30]} 26. Qxe5 {[%emt 0:00:30]} Nxe5 {[%emt 0:00:30]} 27. Bxe3 ({Much less strong is} 27. Rxe3 $6 Nd5 $14) 27... Rac8 {[%emt 0:00:30]} 28. axb5 {[%emt 0:01:00]} axb5 {[%emt 0:00:30]} 29. Bf4 {[%emt 0:00:30]} Nc6 {[%emt 0:00:30]} 30. Rxe8 {[%emt 0:00:30]} Rxe8 {[%emt 0:00:30]} 31. Ra6 {[%emt 0:00:30]} Nd5 {[%emt 0:00:30]} 32. Rxc6 {[%emt 0:00:30]} Nxf4 {[%emt 0:00:30]} 33. Be4 {[%emt 0:00:30]} Ne2+ {[%emt 0:00:30]} 34. Kf2 {[%emt 0:00:30]} Nxc3 {[%emt 0:00:30]} 35. Rxc5 {[%emt 0:00:30]} Nxe4+ {[%emt 0:00:30]} 36. fxe4 {[%emt 0:00:30]} Rxe4 {[%emt 0:00:30]} 37. Rxb5 g6 {[%emt 0:00:30]} 38. fxg6+ {[%emt 0:01:00]} Kxg6 {[%emt 0:00:30]} 39. Kf3 {[%emt 0:00:30]} Re1 {[%emt 0:00:30]} 40. b4 {[%emt 0:00:30]} h5 {[%emt 0:00:30]} (40... Rf1+ $16 {keeps fighting.} 41. Ke3 Rg1) 41. Rb6+ {[%emt 0:30:30]} f6 42. Rb7 {[%emt 0:00:30]} Rf1+ {[%emt 0:31:00]} 43. Kg3 {[%emt 0:00:30]} Rb1 {[%emt 0:00:30]} 44. Kh4 {[%emt 0:00:30]} Rc1 {[%emt 0:00:30]} 45. Rb8 {[%emt 0:00:30]} Rc4+ {[%emt 0:00:30]} 46. Kg3 {[%emt 0:00:30]} Kf5 {[%emt 0:00:30]} 47. b5 {[%emt 0:00:30]} h4+ {[%emt 0:00:30] [#]} 48. Kh2 $1 {[%emt 0:00:30]} Rb4 {[%emt 0:00:30]} 49. b6 {[%emt 0:00:30]} Kg6 {[%emt 0:00:30]} 50. Kg1 {[%emt 0:00:30]} Rb2 {[%emt 0:00:30]} 51. b7 {[%emt 0:00:30]} Kg7 $2 {[%emt 0:00:30]} (51... Kf5 $1 $14) 52. Kf1 {[%emt 0:00:30]} Kh7 {[%emt 0:00:30]} 53. Ke1 {[%emt 0:00:30]} Kg7 {[%emt 0:00:30]} 54. Kd1 {[%emt 0:00:30]} Rb1+ {[%emt 0:00:30]} 55. Kc2 {[%emt 0:00:30]} Rb6 {[%emt 0:00:30]} ({Better is} 55... Rb5) 56. Kc3 {[%emt 0:00:30]} Rb1 {[%emt 0:00:30]} 57. Kd4 {[%emt 0:00:30]} Rb4+ {[%emt 0:00:30]} 58. Kd5 {[%emt 0:00:30]} Rb1 {[%emt 0:00:30]} 59. Ke4 {[%emt 0:00:30]} Rb4+ {[%emt 0:00:30]} 60. Kf5 {[%emt 0:00:30]} Rb2 {[%emt 0:00:30]} 61. Kf4 {[%emt 0:00:30]} Rb4+ {[%emt 0:00:30]} 62. Kf3 {[%emt 0:00:30]} Rb2 $2 {[%emt 0:00:30]} (62... Kh7 $16) 63. Kg4 {[%emt 0:00:30]} Rxg2+ {[%emt 0:00:30]} 64. Kxh4 {[%emt 0:00:30]} Rb2 {[%emt 0:00:30]} 65. Kg4 {[%emt 0:00:30]} Rb5 {[%emt 0:00:30]} 66. h4 {[%emt 0:00:30]} f5+ {[%emt 0:00:30]} 67. Kg5 {[%emt 0:00:30]} f4+ {[%emt 0:00:30]} 68. Kxf4 {[%emt 0:00:30]} Rb4+ $18 {[%emt 0:00:30]} 69. Ke5 {[%emt 0:00:30]} Rb5+ {[%emt 0:00:30]} 70. Kd6 {[%emt 0:00:30]} Rb1 {[%emt 0:00:30]} 71. h5 {[%emt 0:00:30]} Rd1+ {[%emt 0:00:30]} 72. Kc6 {[%emt 0:00:30]} Rc1+ {[%emt 0:00:30]} 73. Kd5 {[%emt 0:00:30]} Rd1+ {[%emt 0:00:30]} 74. Ke4 {[%emt 0:00:30]} Rb1 {[%emt 0:00:30]} 75. h6+ {[%emt 0:00:30]} Kh7 76. Kd3 {[%emt 0:00:30]} Rb6 {[%emt 0:01:00]} 77. Ke4 {[%emt 0:00:30]} 1/2-1/2

[Event "LEM Sachsen-Anhalt Masters 2024"]
[Site "Merseburg"]
[Date "2024.02.08"]
[Round "2.1"]
[White "Reipsch, Jens"]
[Black "Groebel, Aaron"]
[Result "0-1"]
[ECO "C30"]
[WhiteElo "2225"]
[BlackElo "2087"]
[Annotator "RC"]
[PlyCount "52"]
[EventDate "2024.02.01"]
[EventType "swiss"]
[EventCountry "GER"]
[SourceTitle "playchess.com"]
[Source "ChessBase"]
[SourceQuality "1"]
[TimeControl "40/5400+30:1800+30"]

1. e4 {[%emt 0:00:30]} e5 {[%emt 0:00:08]} 2. f4 {[%emt 0:00:00]} Bc5 {[%emt 0:00:07]} 3. Nf3 {[%emt 0:00:00]} d6 {[%emt 0:00:07]} 4. c3 {[%emt 0:08:44]} Bg4 {[%emt 0:08:10]} 5. Be2 {[%emt 0:02:30]} Nc6 {[%emt 0:02:52]} 6. b4 {[%emt 0:05:50]} Bb6 {[%emt 0:04:22]} 7. b5 {[%emt 0:00:45]} Bxf3 {[%emt 0:00:14]} 8. Bxf3 {[%emt 0:00:15]} Na5 {[%emt 0:14:01]} 9. d3 {[%emt 0:04:26]} Ne7 {[%emt 0:06:13]} 10. Qe2 {[%emt 0:01:47]} c6 {[%emt 0:13:56]} 11. bxc6 {[%emt 0:03:19]} bxc6 {[%emt 0:02:26]} 12. Be3 {[%emt 0:00:59]} Ng6 {[%emt 0:02:23]} 13. f5 {[%emt 0:10:44]} Nf4 {[%emt 0:02:08]} 14. Qd2 {[%emt 0:03:09]} Bxe3 {[%emt 0:01:28]} 15. Qxe3 {[%emt 0:00:04]} Qb6 {[%emt 0:00:10]} 16. Qd2 {[%emt 0:01:48]} Rb8 {[%emt 0:17:07]} 17. Na3 {[%emt 0:02:59]} Qc5 {[%emt 0:05:29]} 18. Nc2 {[%emt 0:03:54]} Rb2 {[%emt 0:00:02]} 19. Bd1 {[%emt 0:03:49]} O-O {[%emt 0:01:47]} 20. g3 {[%emt 0:10:10]} Nh3 {[%emt 0:01:50]} 21. f6 {[%emt 0:01:01]} d5 {[%emt 0:04:34]} 22. Kf1 {[%emt 0:09:02]} dxe4 {[%emt 0:11:56]} 23. dxe4 {[%emt 0:01:03]} Nc4 {[%emt 0:00:00]} 24. Qe2 {[%emt 0:00:12]} Rxc2 {[%emt 0:00:00]} 25. Bxc2 {[%emt 0:00:23]} Ne3+ {[%emt 0:00:00]} 26. Ke1 {[%emt 0:00:28]} Qxc3+ {[%emt 0:00:00]} 0-1

[Event "LEM Sachsen-Anhalt Masters 2024"]
[Site "Merseburg"]
[Date "2024.02.08"]
[Round "2.2"]
[White "Haubold, Christian"]
[Black "Malek, Daniel"]
[Result "1/2-1/2"]
[ECO "C03"]
[WhiteElo "1990"]
[BlackElo "2307"]
[Annotator "TA"]
[PlyCount "75"]
[EventDate "2024.02.01"]
[EventType "swiss"]
[EventCountry "GER"]
[SourceTitle "playchess.com"]
[Source "ChessBase"]
[SourceQuality "1"]
[TimeControl "40/5400+30:1800+30"]

{[%evp 9,75,6,8,-21,-10,-42,-39,-52,-32,-43,-28,-38,-41,-60,-30,-83,-60,-85,-77,-174,-73,-70,-62,-62,-37,-58,-50,-38,-41,-63,-7,-29,8,0,0,0,12,8,10,-15,18,18,31,0,0,-18,0,0,0,0,0,0,0,0,0,0,0,0,0,0,0,0,14,0,0,0,0,0]} 1. e4 {[%emt 0:00:03]} e6 {[%emt 0:00:04]} 2. d4 {[%emt 0:00:14][%cal Bd2d4,Bd4c5][%mdl 32]} d5 {[%emt 0:00:03]} 3. Nd2 {[%emt 0:00:08]} Be7 {[%emt 0:00:05]} 4. Bd3 {[%emt 0:11:04]} c5 {[%emt 0:00:21]} 5. dxc5 {[%emt 0:07:35]} Nf6 {[%emt 0:00:20]} 6. Qf3 {[%emt 0:14:59]} O-O {[%emt 0:04:35]} 7. e5 {[%emt 0:09:46]} Nfd7 {[%emt 0:00:38]} 8. Qh3 {[%emt 0:03:17][%csl Gd3][%cal Rh3h7] [#] Black is slightly better.} f5 {[%emt 0:04:44]} 9. f4 {[%emt 0:11:36]} Nxc5 {[%emt 0:07:01]} 10. Ne2 {[%emt 0:02:45]} Qb6 {[%emt 0:09:07]} 11. c3 {[%emt 0:04:26][%cal Od2b3]} Bd7 {[%emt 0:02:08][%cal Oe7h4]} (11... Bh4+ $5 12. Kd1 Bf2 $15) 12. Nd4 {[%emt 0:04:42]} (12. Nb3 $11 {remains equal.}) 12... Nc6 $17 {[%emt 0:02:55]} 13. N2b3 {[%emt 0:03:54] [#]} a5 $1 {[%emt 0:02:15]} 14. Nxc6 {[%emt 0:03:00]} (14. Nxc5 $17 Bxc5 15. Nb3) 14... bxc6 {[%emt 0:03:33]} ({But not} 14... Bxc6 15. Nd4 $15) (14... Nxd3+ $19 15. Qxd3 bxc6 (15... Qxc6 16. Be3 $11)) 15. Nxc5 {[%emt 0:02:35]} Bxc5 {[%emt 0:00:17]} 16. g4 {[%emt 0:04:35]} Rf7 {[%emt 0:07:10]} 17. Ke2 {[%emt 0:02:35]} Bc8 {[%emt 0:01:51]} 18. gxf5 {[%emt 0:02:28]} exf5 {[%emt 0:00:17]} 19. Rb1 {[%emt 0:01:57]} Ba6 {[%emt 0:01:49]} (19... a4 $15) 20. Bd2 {[%emt 0:00:57]} g6 {[%emt 0:03:24]} 21. Qg3 {[%emt 0:01:12]} Bxd3+ {[%emt 0:00:52]} 22. Qxd3 {[%emt 0:00:14]} Rb7 {[%emt 0:02:11]} 23. h4 {[%emt 0:00:45]} h5 {[%emt 0:00:52]} 24. Rh2 {[%emt 0:02:10]} Kf7 {[%emt 0:04:24]} 25. Rg2 {[%emt 0:00:33]} Qa6 {[%emt 0:04:29]} (25... Rg8 {simplifies} 26. Be3 Bxe3 27. Qxe3 Qxe3+ 28. Kxe3 c5) 26. Be3 {[%emt 0:01:40] Dancing on a razor blade.} (26. Qxa6 {simplifies} Rxa6 27. Kd3 Ra8 28. c4) 26... Be7 {[%emt 0:05:59] The position is equal.} 27. Rh2 {[%emt 0:01:02]} a4 {[%emt 0:01:27]} (27... Qc4 {is more complex.} 28. b3 Qe4 29. Rd1 Rab8) 28. Qxa6 {[%emt 0:01:31]} Rxa6 {[%emt 0:00:36]} 29. Kf3 {[%emt 0:00:56]} Ra8 {[%emt 0:05:58]} 30. Rg1 {[%emt 0:00:22][%cal Oe5e6] e6+! is the strong threat.} Rab8 {[%emt 0:01:05]} 31. Rhg2 {[%emt 0:01:04]} Rg8 {[%emt 0:01:48]} 32. Rh2 {[%emt 0:00:18]} c5 {[%emt 0:04:41]} 33. Rd1 {[%emt 0:00:31]} Ke6 {[%emt 0:00:09]} 34. Rhd2 {[%emt 0:00:34]} Rd7 {[%emt 0:02:40]} 35. Rh1 {[%emt 0:00:32]} c4 {[%emt 0:02:02]} 36. a3 {[%emt 0:00:43]} Rb7 {[%emt 0:00:30]} 37. Rg2 {[%emt 0:00:21]} Kf7 {[%emt 0:00:31]} 38. Bd4 {[%emt 0:00:18] Weighted Error Value: White=0.14 (very precise) /Black=0.15 (very precise) .  Mistake:       	White=2     	Black=2      Inaccurate:     	White=2     	Black=3      OK:         	White=9     	Black=11     Best:        	White=1     	---        Strong:       	---       	Black=1} 1/2-1/2

[Event "LEM Sachsen-Anhalt Masters 2024"]
[Site "Merseburg"]
[Date "2024.02.08"]
[Round "2.3"]
[White "Wenzel, Thomas"]
[Black "Haubold, Sebastian"]
[Result "1/2-1/2"]
[ECO "C20"]
[WhiteElo "1747"]
[BlackElo "2055"]
[Annotator "NA RC"]
[PlyCount "79"]
[EventDate "2024.02.01"]
[EventType "swiss"]
[EventCountry "GER"]
[SourceTitle "playchess.com"]
[Source "ChessBase"]
[SourceQuality "1"]
[TimeControl "40/5400+30:1800+30"]

1. e4 {[%emt 0:00:37]} e5 {[%emt 0:00:27]} 2. Qh5 {[%emt 0:00:15]} Nc6 {[%emt 0:05:21]} 3. Bc4 {[%emt 0:02:22]} g6 {[%emt 0:04:41]} 4. Qf3 {[%emt 0:00:48]} Nf6 {[%emt 0:00:59]} 5. Ne2 {[%emt 0:01:06]} Bg7 {[%emt 0:01:46]} 6. Nbc3 {[%emt 0:00:54]} Na5 {[%emt 0:04:44]} 7. d3 {[%emt 0:03:05]} Nxc4 {[%emt 0:04:26]} 8. dxc4 {[%emt 0:00:08]} d6 {[%emt 0:01:25]} 9. Bg5 {[%emt 0:08:01]} h6 {[%emt 0:01:18]} 10. Bd2 {[%emt 0:03:48]} Bg4 {[%emt 0:05:11]} 11. Qd3 {[%emt 0:03:37]} Nd7 {[%emt 0:06:24]} 12. f3 {[%emt 0:12:47]} Be6 {[%emt 0:00:33]} 13. Be3 {[%emt 0:05:06]} h5 $11 {[%emt 0:08:16]} ({Black should try} 13... Nc5 $15 14. Bxc5 dxc5) 14. O-O-O {[%emt 0:03:19]} a6 {[%emt 0:06:13]} 15. Kb1 {[%emt 0:13:33]} Qe7 {[%emt 0:11:10]} 16. Nd5 {[%emt 0:02:39]} Bxd5 {[%emt 0:00:32]} 17. Qxd5 {[%emt 0:02:46]} O-O-O {[%emt 0:01:57]} 18. b3 {[%emt 0:03:03]} f5 {[%emt 0:02:11]} 19. Nc3 {[%emt 0:02:05]} f4 {[%emt 0:06:09]} 20. Bf2 {[%emt 0:01:21]} Nf6 {[%emt 0:03:05]} 21. Qa5 {[%emt 0:02:23]} g5 {[%emt 0:01:23]} 22. Nd5 {[%emt 0:01:48]} Nxd5 {[%emt 0:01:33]} 23. cxd5 {[%emt 0:01:02]} Qd7 {[%emt 0:04:07]} 24. c4 {[%emt 0:00:52]} Bf8 {[%emt 0:01:26]} 25. b4 {[%emt 0:02:45]} Kb8 {[%emt 0:01:58]} 26. Ka1 {[%emt 0:02:22]} Qc8 {[%emt 0:03:42]} 27. c5 {[%emt 0:07:03]} Ka8 {[%emt 0:08:55]} 28. Rb1 {[%emt 0:03:33]} Be7 {[%emt 0:02:20]} 29. Rhc1 {[%emt 0:00:58]} Rh7 {[%emt 0:01:55]} 30. a4 {[%emt 0:04:34]} Bf8 {[%emt 0:00:31]} 31. Bg1 {[%emt 0:01:05]} Rf7 {[%emt 0:00:31]} 32. cxd6 {[%emt 0:01:26]} Rxd6 {[%emt 0:00:27]} 33. b5 {[%emt 0:00:23]} Rh7 {[%emt 0:00:42]} 34. b6 {[%emt 0:01:57]} c6 {[%emt 0:00:17]} 35. Bc5 {[%emt 0:01:16]} Rf6 {[%emt 0:00:22]} 36. Qb4 {[%emt 0:00:42]} Bxc5 {[%emt 0:00:39]} 37. Qxc5 {[%emt 0:01:04]} Qe8 {[%emt 0:00:35]} 38. a5 {[%emt 0:00:46]} Qe7 {[%emt 0:00:35]} 39. Qc4 {[%emt 0:00:55]} Rh8 {[%emt 0:00:17]} 40. Qc5 {[%emt 0:02:16]} 1/2-1/2

[Event "LEM Sachsen-Anhalt Masters 2024"]
[Site "Merseburg"]
[Date "2024.02.08"]
[Round "2.4"]
[White "Lippert, Daniel"]
[Black "Herter, Arne"]
[Result "0-1"]
[ECO "C84"]
[WhiteElo "2034"]
[BlackElo "2028"]
[Annotator "NA RC"]
[PlyCount "66"]
[EventDate "2024.02.01"]
[EventType "swiss"]
[EventCountry "GER"]
[SourceTitle "playchess.com"]
[Source "ChessBase"]
[SourceQuality "1"]
[TimeControl "40/5400+30:1800+30"]

1. e4 {[%emt 0:00:02]} e5 {[%emt 0:00:10]} 2. Nf3 {[%emt 0:00:06]} Nc6 {[%emt 0:00:05]} 3. Bb5 {[%emt 0:00:04]} a6 {[%emt 0:00:06]} 4. Ba4 {[%emt 0:00:03]} Nf6 {[%emt 0:00:05]} 5. O-O {[%emt 0:00:06]} Be7 {[%emt 0:00:05]} 6. d3 {[%emt 0:00:17]} b5 {[%emt 0:00:07]} 7. Bb3 {[%emt 0:00:06]} O-O {[%emt 0:00:07]} 8. a4 {[%emt 0:00:29]} b4 {[%emt 0:01:01]} 9. a5 {[%emt 0:01:34]} d6 {[%emt 0:04:04]} 10. h3 {[%emt 0:00:05]} Be6 {[%emt 0:01:52]} 11. c3 {[%emt 0:15:27]} Rb8 {[%emt 0:03:50]} 12. Bxe6 {[%emt 0:04:19]} fxe6 {[%emt 0:00:10]} 13. Nbd2 {[%emt 0:03:11]} d5 {[%emt 0:18:03]} 14. Qe2 {[%emt 0:02:23]} Nh5 {[%emt 0:03:46]} 15. g3 {[%emt 0:03:33]} Bc5 {[%emt 0:04:49]} 16. d4 {[%emt 0:12:17]} bxc3 {[%emt 0:04:38]} 17. bxc3 $17 {[%emt 0:23:09]} (17. dxc5 $142 cxd2 18. Nxd2) 17... exd4 {[%emt 0:06:15]} 18. Qxa6 {[%emt 0:15:32]} Qd7 {[%emt 0:29:51]} 19. cxd4 {[%emt 0:01:02]} Nxd4 {[%emt 0:00:10]} 20. Ba3 {[%emt 0:07:11]} Ra8 {[%emt 0:06:55]} 21. Qd3 {[%emt 0:01:08]} dxe4 {[%emt 0:00:27]} 22. Qxe4 {[%emt 0:01:04]} Nxg3 {[%emt 0:01:42]} 23. Ne5 {[%emt 0:01:28]} Qe7 {[%emt 0:05:40]} 24. fxg3 {[%emt 0:03:57]} Nf3+ {[%emt 0:02:45]} 25. Kg2 {[%emt 0:01:33]} Nxd2 {[%emt 0:00:34]} 26. Rxf8+ {[%emt 0:02:32]} Rxf8 {[%emt 0:00:06]} 27. Qc2 {[%emt 0:00:41]} Rf2+ {[%emt 0:00:54]} 28. Kh1 {[%emt 0:00:03]} Bxa3 {[%emt 0:00:47]} 29. Nd3 {[%emt 0:00:58]} Qf6 {[%emt 0:02:17]} 30. Rxa3 {[%emt 0:00:38]} Rf1+ {[%emt 0:00:04]} 31. Kh2 {[%emt 0:00:22]} Rh1+ {[%emt 0:00:08]} 32. Kxh1 {[%emt 0:00:21]} Qf1+ {[%emt 0:00:04]} 33. Kh2 {[%emt 0:00:08]} Nf3# {[%emt 0:00:37]} 0-1